Cogmind - Beta 13 @@@ ROGUE MODE // 2024.07.28 @ 17:33:12 Player: Khanable Result: Destroyed by C-17 Slicer with Blade Saw Performance ------------- Evolutions (2) 1000 Regions Visited (3) 600 Robots Destroyed (43) 215 Value Destroyed (1096) 1096 Prototype IDs (8) 160 Alien Tech Used (0) 0 Bonus (0) 0 TOTAL SCORE: 3071 Bonus ------- None Cogmind --------- Core Integrity 0/550 Matter 300/300 Energy 100/100 System Corruption 12% Temperature Cool (35) Movement Walking (90) Location -8/Materials Parts ------- > --- POWER (1) -------- (None) > --- PROPULSION (3) --- VSS Leg > --- UTILITY (4) ------ Heat Sink Advanced Visual Processing Unit > --- WEAPON (3) ------- Particle Gun Blade Saw (fused) > --- INVENTORY (5) ---- Heavy Assault Rifle Peak State ------------ > --- POWER ------------ Nuclear Core > --- PROPULSION ------- Improved Aluminum Leg VSS Leg > --- UTILITY ---------- Heat Sink Advanced Visual Processing Unit Hardened Heavy Armor Plating > --- WEAPON ----------- Particle Gun Pulse Rifle Blade Saw > --- INVENTORY -------- Signal Interpreter Heavy Assault Rifle [Rating: 28] Favorites ----------- Power Ion Engine Engine Ion Engine Power Core Light Nuclear Core Propulsion Improved Hover Unit Leg Aluminum Leg Wheel Wheel Hover Unit Improved Hover Unit Flight Unit Flight Unit Utility Sensor Array Device Sensor Array Storage High-capacity Matter Pod Processor Improved Targeting Computer Protection Medium Armor Plating Weapon Particle Gun Energy Gun Particle Gun Ballistic Gun Light Assault Rifle Ballistic Cannon Assault Cannon Launcher Grenade Launcher Slashing Weapon Blade Saw Special Melee Weapon Datajack Build | -11 -10 -9 -8 ------- Run | Yrd Mat Mat Mat Slots Evolved 4 | . . 2 2 Power . | . . . . Propulsion 1 | . . 1 . Utility 2 | . . 1 1 Weapon 1 | . . . 1 Parts Attached 105 | 11 42 12 40 Power 24 | 5 10 4 5 Engine 21 | 5 10 4 2 Core 3 | . . . 3 Reactor . | . . . . Propulsion 22 | 4 7 5 6 Treads . | . . . . Leg 4 | . 2 . 2 Wheel 5 | 4 1 . . Hover 6 | . 1 3 2 Flight 7 | . 3 2 2 Utility 24 | . 11 3 10 Device 10 | . 3 2 5 Storage 8 | . 8 . . Processor 4 | . . 1 3 Hackware . | . . . . Protection 2 | . . . 2 Artifact . | . . . . Weapon 35 | 2 14 . 19 Energy Gun 14 | . 4 . 10 Energy Cannon . | . . . . Ballistic Gun 9 | 2 6 . 1 Ballistic Cannon 4 | . . . 4 Launcher 2 | . 2 . . Special Weapon . | . . . . Impact Weapon . | . . . . Slashing Weapon 2 | . . . 2 Piercing Weapon . | . . . . Special Melee Weapon 4 | . 2 . 2 Unidentified Prototypes 3 | . . . 3 Parts Lost 22 | . 5 . 17 Power 3 | . 1 . 2 Propulsion 6 | . 2 . 4 Utility 6 | . . . 6 Weapon 7 | . 2 . 5 Highest Loss Streak 5 | . 2 . 5 To Critical Strikes . | . . . . Average Slot Usage (%) 70 | . 71 76 65 Engine 10 | . 13 11 5 Leg 4 | . 9 . 1 Hover 7 | . 2 11 10 Flight 4 | . 4 3 4 Device 12 | . 9 20 9 Storage 2 | . 4 . . Processor 4 | . . 8 7 Energy Gun 15 | . 13 22 12 Ballistic Gun 3 | . 8 . . Ballistic Cannon 1 | . . . 5 Naked Turns 2 | . . . 2 Heaviest Build 36 | 5 32 14 36 Greatest Support 26 | 20 20 20 26 Greatest Overweight (x) 10 | . 10 4 4 Average Overweight (x) . | . 1 1 . Largest Inventory Capacity 15 | 5 15 5 5 Average Capacity 5 | 5 5 5 5 Most Carried 6 | 3 6 5 5 Average Carried 3 | 1 3 4 3 Final Capacity 5 | 5 5 5 5 Final Carried 5 | 3 5 5 1 Class Distribution -------------------- 74% | Mutant 14% | Scavenger-Mutant 4% | Scavenger-Gunner 4% | Gunner Dominant Class ---------------- Mutant | -10/Materials Mutant | -9/Materials Scavenger-Mutant | -8/Materials Resources | -11 -10 -9 -8 ----------- Run | Yrd Mat Mat Mat Matter Collected 1495 | 324 412 265 494 Remotely . | . . . . Salvage Created 1288 | 41 470 292 485 Parts 82 | 2 35 21 24 Haulers Intercepted . | . . . . Recyclers Shooed 1 | . . . 1 Parts Field Recycled . | . . . . Retrieved Matter . | . . . . Parts Self-Destructed . | . . . . Prevented . | . . . . Kills | -11 -10 -9 -8 ------- Run | Yrd Mat Mat Mat Combat Hostiles Destroyed 33 | 1 15 8 9 Melee 1 | . . . 1 Guns 24 | 1 9 8 6 Cannons 2 | . . . 2 AOE 5 | . 5 . . Classes Destroyed 10 | 1 5 1 3 Worker 1 | . 1 . . Builder 1 | . 1 . . Recycler 3 | . 1 . 2 Watcher 5 | . 1 3 1 Swarmer 9 | . 6 3 . Cutter 3 | . . . 3 Grunt 16 | 1 9 4 2 Duelist 1 | . . . 1 Sentry 3 | . . 1 2 Specialist 1 | . . . 1 Best Kill Streak 8 | 1 8 4 3 Combat Bots Only 7 | 1 7 3 3 Max Kills in Single Turn 3 | 1 3 1 2 Gunslinging . | . . . . Exploded 2 | . 2 . . Melee 1 | . . . 1 Uniques/NPCs Destroyed . | . . . . Combat | -11 -10 -9 -8 -------- Run | Yrd Mat Mat Mat Hostile Shots Fired 281 | 12 90 32 147 Missed 78 | 1 28 9 40 Damage Taken 2828 | 126 705 163 1834 Core 847 | 33 207 51 556 Absorbed by Shields 117 | . . 64 53 Regen/Repaired (Parts) 41 | . 13 28 . Core Remaining (%) 59 | 86 4 87 . Volleys Fired 105 | 7 40 20 38 Largest 3 | 2 2 2 3 Hottest 165 | 40 130 130 165 Shots Fired 192 | 14 72 40 66 Gun 156 | 14 63 40 39 Cannon 27 | . . . 27 Launcher 9 | . 9 . . Special . | . . . . Kinetic 73 | 14 32 . 27 Thermal 104 | . 31 40 33 Explosive 9 | . 9 . . Electromagnetic 6 | . . . 6 Robot Hit Streak 9 | 6 9 5 9 Robot Miss Streak 8 | 1 8 2 4 Penetration Max . | . . . . Secondary Targets 3 | . 1 2 . Max Gunslinging Chain 1 | . 1 1 . Shots Hit Robots 134 | 11 43 30 50 Core Hits 65 | 3 24 15 23 Critical Kills . | . . . . Critical Parts Destroyed . | . . . . Critical Strikes 10 | . 1 3 6 Burn 4 | . 1 3 . Sever 6 | . . . 6 Melee Attacks 26 | . 7 . 19 Impact . | . . . . Slashing 17 | . . . 17 Piercing . | . . . . Sneak Attacks 10 | . 6 . 4 Combat Hostiles . | . . . . Follow-up Attacks . | . . . . Damage Inflicted 2547 | 96 870 483 1098 Guns 1415 | 96 406 483 430 Cannons 371 | . . . 371 Explosions 464 | . 464 . . Melee 297 | . . . 297 Ramming . | . . . . Kinetic 632 | 96 165 . 371 Thermal 1062 | . 241 483 338 Explosive 464 | . 464 . . Electromagnetic 92 | . . . 92 Impact . | . . . . Slashing 297 | . . . 297 Piercing . | . . . . Highest Corruption 12 | . 2 . 12 Average Corruption 10 | . 1 . 11 Corruption Purged . | . . . . Corruption Blocked . | . . . . Effects 15 | . 1 . 14 Message Errors 2 | . . . 2 Matter Fused 4 | . . . 4 Heat Flow Errors 2 | . . . 2 Energy Discharges 1 | . 1 . . Parts Fused 2 | . . . 2 Data Loss (minor) 1 | . . . 1 Data Loss (major) 1 | . . . 1 Misfires 1 | . . . 1 Weapon Failures 1 | . . . 1 Overload Shots . | . . . . Overflow Damage 39 | . 35 . 4 Projectiles 4 | . . . 4 Explosions 35 | . 35 . . Melee . | . . . . Knockbacks 3 | . . . 3 Impact . | . . . . Kinetic 3 | . . . 3 Secondary . | . . . . Self-Inflicted Damage 92 | . 92 . . Shots 4 | . 4 . . Rammed . | . . . . Targets Rammed . | . . . . Kicked . | . . . . Crushed . | . . . . Highest Temperature 557 | 1 294 308 557 Average Temperature 141 | 1 97 116 185 Received Heat Transfer 682 | 66 213 54 349 Effects 9 | . 1 . 8 Shutdowns 3 | . . . 3 Energy Bleed 2 | . 1 . 1 Interference 3 | . . . 3 Short Circuit 1 | . . . 1 Siege Activations . | . . . . Robots Corrupted . | . . . . Combat Hostiles . | . . . . Parts Fried . | . . . . Impact Corruptions . | . . . . Robots Melted 1 | . 1 . . Combat Hostiles 1 | . 1 . . Parts Melted 4 | . . 3 1 Heat Transferred 2812 | . 666 1369 777 Parts Sabotaged . | . . . . Parts Stolen . | . . . . Parts Stripped . | . . . . Power Chain Reactions . | . . . . Alert | -11 -10 -9 -8 ------- Run | Yrd Mat Mat Mat Peak Influence 260 | 20 260 253 200 Initial 106 | . 13 94 106 Average 119 | . 147 123 100 Maximum Alert Level 1 | . 1 1 1 Low Security (%) 84 | 100 82 77 89 Level 1 15 | . 17 22 10 Level 2 . | . . . . Level 3 . | . . . . Level 4 . | . . . . Level 5 . | . . . . High Security . | . . . . Max Security . | . . . . Squads Dispatched 11 | . 4 4 3 Investigation 6 | . 3 3 . Extermination . | . . . . Reinforcement 5 | . 1 1 3 Assault . | . . . . Garrison . | . . . . Intercept . | . . . . Searches Triggered . | . . . . Construction Impeded . | . . . . Haulers Reinforced . | . . . . Active Scanning Responses . | . . . . Cargo Convoy Interrupts . | . . . . Stealth | -11 -10 -9 -8 --------- Run | Yrd Mat Mat Mat Distress Signals 2 | . . 1 1 Communications Jammed . | . . . . Distress Signals . | . . . . Times Spotted 51 | 1 20 15 15 Peak Tracking Total 7 | 1 5 7 4 Tactical Retreats 3 | . . 2 1 Traps | -11 -10 -9 -8 ------- Run | Yrd Mat Mat Mat Traps Triggered 4 | . 2 2 . Indirectly . | . . . . Trap Hack Attempts . | . . . . Triggered . | . . . . Disarmed . | . . . . Reprogrammed . | . . . . Reused . | . . . . Traps Extracted . | . . . . Installed . | . . . . Triggered . | . . . . Machines | -11 -10 -9 -8 ---------- Run | Yrd Mat Mat Mat Machines Disabled 2 | . 2 . . Max in Single Turn 1 | . 1 . . Machines Repaired . | . . . . Machines Dismantled . | . . . . Machines Sabotaged . | . . . . Overloaded Fab Kills . | . . . . Hacking | -11 -10 -9 -8 --------- Run | Yrd Mat Mat Mat Machines Accessed 12 | . 7 1 4 Terminals 6 | . 5 . 1 Fabricators . | . . . . Repair Stations 2 | . 1 1 . Recycling Units 3 | . 1 . 2 Scanalyzers 1 | . . . 1 Garrison Access . | . . . . Total Hacks 40 | . 25 3 12 Successful 28 | . 16 2 10 Failed 12 | . 9 1 2 Catastrophic 1 | . 1 . . Database Lockouts . | . . . . Manual 7 | . 2 . 5 Terminals 23 | . 17 . 6 Fabricators . | . . . . Repair Stations 7 | . 4 3 . Recycling Units 8 | . 4 . 4 Scanalyzers 2 | . . . 2 Garrison Access . | . . . . Terminal Hacks 15 | . 10 . 5 Record 9 | . 4 . 5 Prototype ID Bank 2 | . 2 . . Dispatch Records 1 | . 1 . . Security Status 1 | . 1 . . Zone Layout 2 | . 2 . . Fabricator Hacks . | . . . . Repair Station Hacks 5 | . 3 2 . Scan Component 2 | . 1 1 . Repair 2 | . 1 1 . Refit 1 | . 1 . . Recycling Unit Hacks 6 | . 3 . 3 Report Inventory 4 | . 2 . 2 Retrieve Components 2 | . 1 . 1 Scanalyzer 2 | . . . 2 Insert Component 1 | . . . 1 Analyze 1 | . . . 1 Garrison Access Hacks . | . . . . Unauthorized Hacks . | . . . . Terminals . | . . . . Fabricators . | . . . . Repair Stations . | . . . . Recycling Units . | . . . . Scanalyzers . | . . . . Garrison Access . | . . . . Data Cores Recovered . | . . . . Used . | . . . . Hacking Detections 10 | . 7 1 2 Full Trace Events 7 | . 5 1 1 Feedback Events . | . . . . Feedback Blocked . | . . . . Robot Schematics Acquired . | . . . . Robots Built . | . . . . Authchips . | . . . . Time . | . . . . Total Robot Build Rating . | . . . . Part Schematics Acquired 1 | . . . 1 Parts Built . | . . . . Authchips . | . . . . Time . | . . . . Total Part Build Rating . | . . . . Parts Repaired 2 | . 1 1 . Time 58 | . 26 32 . Parts Recycled . | . . . . Recycled Matter . | . . . . Retrieved Matter . | . . . . Retrieved Components 10 | . . . 10 Parts Scanalyzed 1 | . . . 1 Part Schematics Acquired 1 | . . . 1 Parts Damaged . | . . . . Bothacking | -11 -10 -9 -8 ------------ Run | Yrd Mat Mat Mat Used RIF Installer . | . . . . Robots Hacked 5 | . 4 . 1 Non-combat 3 | . 3 . . Combat 2 | . 1 . 1 Robot Hacks Applied 6 | . 5 . 1 parse_system 4 | . 3 . 1 no_distress 2 | . 2 . . Relay Couplers Released . | . . . . Fabnet Peak Effective % . | . . . . Robots Rewired . | . . . . Allies Hacked . | . . . . Hacks Repelled . | . . . . Allies | -11 -10 -9 -8 -------- Run | Yrd Mat Mat Mat Total Allies . | . . . . Largest Group . | . . . . Highest-Rated Group . | . . . . Highest-Rated Ally . | . . . . Total Orders . | . . . . Ally Attacks . | . . . . Total Damage . | . . . . Kills . | . . . . Allies Corrupted . | . . . . Allies Melted . | . . . . Intel | -11 -10 -9 -8 ------- Run | Yrd Mat Mat Mat Robot Analysis Total . | . . . . Derelict Logs Recovered . | . . . . Drone Launches . | . . . . Drone Recoveries . | . . . . Exploration | -11 -10 -9 -8 ------------- Run | Yrd Mat Mat Mat Turns Passed 2783 | 190 1189 667 737 Spaces Moved 2014 | 203 763 489 559 Core 488 | 36 273 114 65 Treads . | . . . . Legs 160 | . 134 . 26 Wheels 215 | 167 48 . . Hover 717 | . 96 291 330 Flight 434 | . 212 84 138 Fastest Speed 32 | 50 37 52 32 Average Speed 107 | 74 127 106 92 Slowest Speed 550 | 80 550 280 250 Overloaded Moves . | . . . . Propulsion Burnouts . | . . . . Robots Hopped 2 | . 2 . . Cave-ins Triggered 1 | . . . 1 Exploration Rate (%) 32 | 6 69 28 26 Regions Visited 3 Branch Regions . Pre-discovered Areas . | . . . . Known Exits Taken . | . . . . Unknown Exits Taken 3 | 1 1 1 . Scrap Searched . | . . . . Spaces Dug . | . . . . Terrain Destroyed 51 | . 46 . 5 Melee . | . . . . Projectile 5 | . . . 5 AOE 46 | . 46 . . Terrain Rammed . | . . . . Walls Destroyed . | . . . . Machines Disabled . | . . . . Actions | -11 -10 -9 -8 --------- Run | Yrd Mat Mat Mat Total 2423 | 230 916 593 684 Wait 69 | . 8 60 1 Move 2007 | 202 758 488 559 Hop 2 | . 2 . . Pick Up 26 | 4 14 5 3 Fast Attach 47 | 4 13 8 22 Attach 39 | 7 20 . 12 Detach 37 | 6 21 . 10 Swap 19 | . 9 4 6 Drop 46 | . 24 8 14 Fire 105 | 7 40 20 38 Melee 26 | . 7 . 19 Ram . | . . . . Kick . | . . . . Crush . | . . . . Escape Stasis . | . . . . Rewire . | . . . . Trap . | . . . . Miscellaneous . | . . . . Route ------- -11/Scrapyard -10/Materials (discovered 4 exits: *Mat x2 / [*Min x2]) -9/Materials -8/Materials History --------- Turn | Location | Event 2 | -11/Scrapyard | Met Revision 17 153 | -11/Scrapyard | Discovered new exit (range 8) 191 | -11/Scrapyard | Entered Materials 310 | -10/Materials | Build established: Mutant 638 | -10/Materials | Core integrity fell below 50% 669 | -10/Materials | Destroyed 7 combat bots 687 | -10/Materials | Discovered new exit (range 12) 788 | -10/Materials | Core integrity fell below 20% 920 | -10/Materials | Repaired Ion Engine? 991 | -10/Materials | Discovered new exit (range 6) 1029 | -10/Materials | Discovered new exit (range 16) 1321 | -10/Materials | Discovered new exit (range 8) 1380 | -10/Materials | Entered another Materials area 1380 | -9/Materials | Evolved 2 slots: Propulsion x1, Utility x1 1958 | -9/Materials | Repaired Shield Generator 2026 | -9/Materials | Discovered new exit (range 11) 2047 | -9/Materials | Entered another Materials area 2047 | -8/Materials | Evolved 2 slots: Utility x1, Weapon x1 2387 | -8/Materials | Lost 5 parts (3n1u1w) 2493 | -8/Materials | Core integrity fell below 50% 2505 | -8/Materials | Crushed by falling debris 2505 | -8/Materials | System corruption reached 10% 2536 | -8/Materials | Lost 5 parts (1p1u3w) 2670 | -8/Materials | Core integrity fell below 20% 2784 | -8/Materials | Destroyed by C-17 Slicer with Blade Saw Last Messages --------------- R-06 Scavenger inserts Com. Wheel into recycling unit. System corrupted: Heat flow error (+187). K-01 Serf collects debris. Overheating: System interference. Particle Gun temporarily disabled. R-06 Scavenger inserts Signal Interpreter into recycling unit. R-06 Scavenger inserts Lgt. Ion Engine into recycling unit. K-01 Serf collects debris. C-17 Slicer Surge Thruster severed. Pulse Rifle destroyed. K-01 Serf collects debris. R-06 Scavenger collects Hpw. Shotgun. K-01 Serf collects debris. Hrd. Heavy Armor Plating destroyed. M-13 Machinist repairs R-06 Scavenger. R-06 Scavenger collects Com. Wheel. K-01 Serf collects debris. Nuclear Core severed. K-01 Serf cleans the Recycling Unit. [Achievement: First Step to Greatness] Map ----- +----------------------------------------------------+ | ?????????????????????????????????????????????????? | | ?????????????????????????????????????????????????? | | ?????????????????????????????????????????????????? | | ?????????????????????????????????????????????????? | | ?????????????????????????????????????????????????? | | ?????????????????????????????????????????????????? | | ?????????????????????????????????????????????????? | | ?????????????????????????????????????????????????? | | ???????????????????????????????? ??????????????? | | ???????????????????????????????? #?????????????? | | ???????????????????????????????? #?????????????? | | ???????????????????????????????? #?????????????? | | ???????????????????????????????? #?????????????? | | ???????????????????????????????? #?????????????? | | ???????????????????????????????? #?????????????? | | ???##############+############?# #?????????????? | | ??? ^ ? #?????????????? | | ??? ? ?? +?????????????? | | ??? ??? ^ ??? ??? #?????????????? | | ???# #?????????# ########### #?????????????? | | #### #?????????# ##*! k ## #?????????????? | | # #??????? ?# ##%m*r! # #?????????????? | | + +??????? # ##k"/"/[ ## #?????????????? | | # #???????? # #!="Y"%[ ## #?????????????? | | # #?????????# # ="""]= ## % #?????????????? | | #### ########### c@c= ## ##????????????? | | c##+### #????????????? | | #????????????? | | """ T #????????????? | | """ #????????????? | | """ ########### #### #????????????? | | ### ## # ##########????????????? | | ??# ## """ # # #????????????? | | ??# ## """ + # """ #????????????? | | ??# ## """ # # """ #????????????? | | ??# ! ## # + """ #????????????? | | ??# [[ ## # # #????????????? | | [[[ ## "" ### # #????????????? | | [[[ ## S"" #?# # "Y" #????????????? | | ######### ## "" #?# # """ #????????????? | | ????????################?# # #????????????? | | ?????????????????????????# ##########????????????? | | ?????????????????????????# #?????????????????????? | | ?????????????????????????# #?????????????????????? | | ???######????????????????# #??#######????????????? | | #### ################## #### #????????????? | | #????????????? | | #????????????? | | #### #????????????? | | ???##+##############+########## #????????????? | +----------------------------------------------------+ Best States ------------- Heat Dissipation 51 Energy Generation 14 Energy Capacity 265 Matter Stores 300 Matter Capacity 500 Sight Range 20 Robot Scan Range 14 Terrain Scan Density 10 Additional Mass Support 6 Armor Coverage 600 Evasion (%) 63 Targeting Accuracy 8 Item Schematics ----------------- Signal Interpreter | -8/Materials | Scanalyzed Robot Schematics ------------------ None Fabricated ------------ Nothing Alien Tech Used ----------------- None Achievements -------------- Close Call First Step to Greatness It's Just You One Hack Too Far Part-time Mechanic Party Time Risk Taker Storm Trooper System Compromised Uninvited Guest Unlikely Earthworm Challenges ------------ None Game ------ Seed CooledShrapnelRigger Manual? 0 Play Time 01:55:27 Cumulative 1.8 hours Start 2024.07.28 @ 15:21:09 End 2024.07.28 @ 17:33:12 Sessions 1 Manual Loads 0 Difficulty Rogue Special Mode None Game No. 1 Rogue 1 Adventurer 0 Explorer 0 Win Type - Total 0 Types 0/0/0/0/0/0/0/0/0 Lore% 1 Gallery% 4 Achievement% 4 Wizard Run 0 Options --------- Layout 1 ASCII 0 Keyboard 1 Movement Vi Keybinds 0 Fullscreen 1 Font 32/SmallcapsGlow Map View 77x35 Zoom Use 0% Tactical HUD 0 Map Filters NONE Filters NONE Steam 1 RUN: 795dbae2-a92a-4929-b59f-4d5aa1e67b04